Departmental Area,Entity,Payment Date,Expense Type,Expense Area,Supplier Name,Payment Reference,Invoice Distribution Amount,Description,Suplier Type,Expenditure Type
UK Statistics Family,Office for National Statistics,03/08/2020,Surveys,Social Surveys Division,Natcen Social Research,185923," 655,949.48 ",Statistical Services,Large,Programme Expenditure
UK Statistics Family,Office for National Statistics,03/08/2020,Exp - Purchase Of Goods/Services - Incentive Payments,Social Surveys Division,Natcen Social Research,185923," 24,413.50 ",Statistical Services,Large,Programme Expenditure
UK Statistics Family,Office for National Statistics,03/08/2020,Exp - Purchase Of Goods/Services - Incentive Payments,Interviewer Support,P & Mm Ltd,185924," 108,586.98 ",Survey Response Incentive Vouchers,Large,Programme Expenditure
UK Statistics Family,Office for National Statistics,03/08/2020,FM Contract Payments,FM Payments,Vinci Construction UK Limited,185925," 350,311.66 ",Facilities Mangement Services,Large,Programme Expenditure
UK Statistics Family,Office for National Statistics,03/08/2020,IT (Owned) At Cost - Additions,Survey Design And Assurance,Scc,185929," 260,073.24 ",Software Licenses,Large,Programme Expenditure
UK Statistics Family,Office for National Statistics,03/08/2020,Telecoms,IT Operations,Bt Global Services,185930," 37,942.76 ",Telephony Charges,Large,Programme Expenditure
UK Statistics Family,Office for National Statistics,03/08/2020,Surveys,Beyond 2021 Research And Design,Ipsos MORI,185936," 308,363.93 ",Statistical Services,Large,Programme Expenditure
UK Statistics Family,Office for National Statistics,03/08/2020,Exp - Purchase Of Goods/Services - IT Contractual Services,Tech Delivery Data As A Platform,Insight Direct,185941," 107,381.18 ",Information Management Services,Large,Programme Expenditure
UK Statistics Family,Office for National Statistics,03/08/2020,"ICT Outsourcing, Maintenance And Support",Senior Management Team Design,Totalmobile Ltd,185949," 122,521.80 ",Information Management Services,SME,Programme Expenditure
UK Statistics Family,Office for National Statistics,03/08/2020,"ICT Outsourcing, Maintenance And Support",Consultancy Management,Totalmobile Ltd,185949," 122,400.00 ",Information Management Services,SME,Programme Expenditure
UK Statistics Family,Office for National Statistics,03/08/2020,"ICT Outsourcing, Maintenance And Support",IT Operations,CTS (Cloud Technology Solutions Ltd),185952," 44,568.06 ",DST Infrastructure Preparation,Large,Programme Expenditure
UK Statistics Family,Office for National Statistics,03/08/2020,Hosting,IT Operations,CTS (Cloud Technology Solutions Ltd),185952," 63,592.80 ",DST Infrastructure Preparation,Large,Programme Expenditure
UK Statistics Family,Office for National Statistics,03/08/2020,Exp - Purchase Of Goods/Services - Other ICT Costs Software,Stakeholder Engagement And Comms,Brandwatch,185953," 35,328.00 ",Statistical Services,SME,Programme Expenditure
UK Statistics Family,Office for National Statistics,03/08/2020,Exp - Purchase Of Goods/Services - Contractors,Digital Publishing,Methods Business & Digital Technology Ltd,185957," 18,480.00 ",Information Management Services,Large,Programme Expenditure
UK Statistics Family,Office for National Statistics,03/08/2020,Exp - Purchase Of Goods/Services - Contractors,Digital Publishing,Methods Business & Digital Technology Ltd,185957," 16,500.00 ",Information Management Services,Large,Programme Expenditure
UK Statistics Family,Office for National Statistics,03/08/2020,Exp - Purchase Of Goods/Services - IT Contractual Services,DST Reapportioning,Methods Business & Digital Technology Ltd,185957," 125,643.00 ",Information Management Services,Large,Programme Expenditure
UK Statistics Family,Office for National Statistics,03/08/2020,Surveys,Data Science Campus,Telefonica UK Limited,185961," 102,600.00 ",Statistical Services,Large,Programme Expenditure
UK Statistics Family,Office for National Statistics,04/08/2020,Telecoms,IT Operations,Crown Hosting Data Centres Limited,185963," 2,580.00 ",Information Management Services,SME,Programme Expenditure
UK Statistics Family,Office for National Statistics,04/08/2020,Hosting,IT Operations,Crown Hosting Data Centres Limited,185963," 73,501.72 ",Information Management Services,SME,Programme Expenditure
UK Statistics Family,Office for National Statistics,04/08/2020,End User Software And Hardware,IT Operations,Scc,185965," 56,272.50 ",Software Licenses,Large,Programme Expenditure
UK Statistics Family,Office for National Statistics,04/08/2020,End User Software And Hardware,Business Statistics Transformation,Scc,185965," 42,066.00 ",Software Licenses,Large,Programme Expenditure
UK Statistics Family,Office for National Statistics,04/08/2020,Exp - Purchase Of Goods And Services Consultants,Digital Delivery,Xma Limited,185967," 1,406.26 ",Leasing of Devices,Large,Programme Expenditure
UK Statistics Family,Office for National Statistics,04/08/2020,Postage,Digital Delivery,Xma Limited,185967," 26,707.56 ",Leasing of Devices,Large,Programme Expenditure
UK Statistics Family,Office for National Statistics,04/08/2020,Exp - Purchase Of Goods/Services - IT Contractual Services,Digital Delivery,Xma Limited,185967," 99,439.95 ",Leasing of Devices,Large,Programme Expenditure
UK Statistics Family,Office for National Statistics,04/08/2020,Stationery,Interviewer Support,Xma Limited,185967,-369.60 ,Leasing of Devices,Large,Programme Expenditure
UK Statistics Family,Office for National Statistics,04/08/2020,"ICT Outsourcing, Maintenance And Support",Researcher Support And Data Access ,Equiniti Limited,185968," 28,588.10 ",Information Management Services,Large,Programme Expenditure
UK Statistics Family,Office for National Statistics,04/08/2020,End User Software And Hardware,Researcher Support And Data Access ,Equiniti Limited,185968," 103,948.06 ",Information Management Services,Large,Programme Expenditure
UK Statistics Family,Office for National Statistics,04/08/2020,"ICT Outsourcing, Maintenance And Support",IT Operations,Equiniti Limited,185968," 66,310.22 ",Information Management Services,Large,Programme Expenditure
UK Statistics Family,Office for National Statistics,04/08/2020,Hosting,IT Operations,Equiniti Limited,185968," 49,942.46 ",Information Management Services,Large,Programme Expenditure
UK Statistics Family,Office for National Statistics,04/08/2020,End User Software And Hardware,Tech Delivery Next Gen IT And Infrastructure,Phoenix Software Ltd,185969," 52,140.00 ",Software Licenses,SME,Programme Expenditure
UK Statistics Family,Office for National Statistics,04/08/2020,End User Software And Hardware,IT Operations,Phoenix Software Ltd,185969," 12,957.60 ",Software Licenses,SME,Programme Expenditure
UK Statistics Family,Office for National Statistics,04/08/2020,Rent Payable,Property Titchfield,Eaton Aerospace Limited,185971," 28,188.60 ",Rental Charges,Large,Programme Expenditure
UK Statistics Family,Office for National Statistics,04/08/2020,Capital Major Works >25K,Property Newport,Paramount Office Interiors Ltd,185972," 76,326.85 ",Buildings Maintenance,SME,Programme Expenditure
UK Statistics Family,Office for National Statistics,04/08/2020,Major Works Over 25K,Property Newport,Paramount Office Interiors Ltd,185972," 5,947.02 ",Buildings Maintenance,SME,Programme Expenditure
UK Statistics Family,Office for National Statistics,04/08/2020,Major Works Over 25K,Property Newport,Paramount Office Interiors Ltd,185972," 141,749.87 ",Buildings Maintenance,SME,Programme Expenditure
UK Statistics Family,Office for National Statistics,04/08/2020,Capital Major Works >25K,Property Titchfield,Paramount Office Interiors Ltd,185972," 14,733.02 ",Buildings Maintenance,SME,Programme Expenditure
UK Statistics Family,Office for National Statistics,04/08/2020,Major Works Over 25K,Property Titchfield,Paramount Office Interiors Ltd,185972," 2,902.26 ",Buildings Maintenance,SME,Programme Expenditure
UK Statistics Family,Office for National Statistics,04/08/2020,Major Works Over 25K,Property Titchfield,Paramount Office Interiors Ltd,185972," 31,307.68 ",Buildings Maintenance,SME,Programme Expenditure
UK Statistics Family,Office for National Statistics,05/08/2020,Exp - Purchase Of Goods And Services Consultants,Consultancy Management,Deloitte,186115," 37,857.60 ",Consultancy,Large,Programme Expenditure
UK Statistics Family,Office for National Statistics,05/08/2020,Surveys,Business Outputs And Developments,Iff Research,186116," 186,234.42 ",Statistical Services,Large,Programme Expenditure
UK Statistics Family,Office for National Statistics,06/08/2020,Exp - Permanent UK Staff - PRP Voucher Payments,ONS Corporate Funds,Park Retail Ltd,186121," 16,084.86 ",Performance Reward Vouchers,Large,Programme Expenditure
UK Statistics Family,Office for National Statistics,06/08/2020,Exp - Purchase Of Goods/Services - Incentive Payments,Survey Management,Park Retail Ltd,186121," 62,188.64 ",Survey Response Incentive Vouchers,Large,Programme Expenditure
UK Statistics Family,Office for National Statistics,06/08/2020,Exp - Purchase Of Goods/Services - IT Contractual Services,DST Reapportioning,Empiric Solutions Limited,186122," 17,160.00 ",Information Management Services,Large,Programme Expenditure
UK Statistics Family,Office for National Statistics,06/08/2020,Exp - Purchase Of Goods/Services - IT Contractual Services,Strategy And Architecture,Empiric Solutions Limited,186122," 48,360.00 ",Information Management Services,Large,Programme Expenditure
UK Statistics Family,Office for National Statistics,06/08/2020,"ICT Outsourcing, Maintenance And Support",Researcher Support And Data Access ,Equiniti Limited,186123,-149.82 ,Information Management Services,Large,Programme Expenditure
UK Statistics Family,Office for National Statistics,06/08/2020,End User Software And Hardware,Researcher Support And Data Access ,Equiniti Limited,186123,-74.12 ,Information Management Services,Large,Programme Expenditure
UK Statistics Family,Office for National Statistics,06/08/2020,End User Software And Hardware,Researcher Support And Data Access ,Equiniti Limited,186123," 51,974.03 ",Information Management Services,Large,Programme Expenditure
UK Statistics Family,Office for National Statistics,06/08/2020,"ICT Outsourcing, Maintenance And Support",IT Operations,Equiniti Limited,186123," 28,475.11 ",Information Management Services,Large,Programme Expenditure
UK Statistics Family,Office for National Statistics,06/08/2020,Exp - Purchase Of Goods/Services - Contractors,Testing,La International,186128," 10,195.14 ",Information Management Services,SME,Programme Expenditure
UK Statistics Family,Office for National Statistics,06/08/2020,Exp - Purchase Of Goods/Services - Contractors,Testing,La International,186128," 16,435.66 ",Information Management Services,SME,Programme Expenditure
UK Statistics Family,Office for National Statistics,06/08/2020,Exp - Purchase Of Goods/Services - Contractors,Sustainability And Inequalities,La International,186128," 4,419.66 ",Information Management Services,SME,Programme Expenditure
UK Statistics Family,Office for National Statistics,06/08/2020,Exp - Purchase Of Goods/Services - Contractors,Data Architecture,La International,186128," 6,760.10 ",Information Management Services,SME,Programme Expenditure
UK Statistics Family,Office for National Statistics,06/08/2020,Exp - Purchase Of Goods/Services - Contractors,Data Architecture,La International,186128," 3,524.22 ",Information Management Services,SME,Programme Expenditure
UK Statistics Family,Office for National Statistics,06/08/2020,Exp - Purchase Of Goods/Services - Contractors,Data Architecture,La International,186128," 27,617.28 ",Information Management Services,SME,Programme Expenditure
UK Statistics Family,Office for National Statistics,06/08/2020,Exp - Purchase Of Goods/Services - Contractors,Tech Delivery Data As A Platform,La International,186128," 9,611.64 ",Information Management Services,SME,Programme Expenditure
UK Statistics Family,Office for National Statistics,06/08/2020,Exp - Purchase Of Goods/Services - Contractors,IT Applications,La International,186128," 17,903.64 ",Information Management Services,SME,Programme Expenditure
UK Statistics Family,Office for National Statistics,06/08/2020,"ICT Outsourcing, Maintenance And Support",Tech Delivery Next Gen IT And Infrastructure,Bytes Software Services Ltd,186129," 90,685.08 ",Software Licenses,Large,Programme Expenditure
UK Statistics Family,Office for National Statistics,06/08/2020,"ICT Outsourcing, Maintenance And Support",IT Operations,Bytes Software Services Ltd,186129," 45,342.54 ",Software Licenses,Large,Programme Expenditure
UK Statistics Family,Office for National Statistics,06/08/2020,Hosting,IT Operations,Amazon Web Services Inc,186134," 68,458.33 ",Information Management Services,Large,Programme Expenditure
UK Statistics Family,Office for National Statistics,10/08/2020,Telecoms,IT Operations,Bt Global Services,186218," 49,780.39 ",Telephony Charges,Large,Programme Expenditure
UK Statistics Family,Office for National Statistics,10/08/2020,Postage,Survey Processing Centre,DHL Parcel Ltd,186220," 30,725.71 ",Courier Services,Large,Programme Expenditure
UK Statistics Family,Office for National Statistics,10/08/2020,"ICT Outsourcing, Maintenance And Support",IT Operations,Computacenter (Uk) Limited,186224," 530,438.06 ",Software Licenses,Large,Programme Expenditure
UK Statistics Family,Office for National Statistics,10/08/2020,End User Software And Hardware,IT Operations,Computacenter (Uk) Limited,186224," 10,013.04 ",Software Licenses,Large,Programme Expenditure
UK Statistics Family,Office for National Statistics,10/08/2020,Exp - Purchase Of Goods/Services - Contractors,Business Architecture,LA FOSSE ASSOCIATES LIMITED,186238," 34,650.00 ",Information Management Services,Large,Programme Expenditure
UK Statistics Family,Office for National Statistics,10/08/2020,Exp - Purchase Of Goods/Services - Contractors,Business Architecture,LA FOSSE ASSOCIATES LIMITED,186238," 183,015.00 ",Information Management Services,Large,Programme Expenditure
UK Statistics Family,Office for National Statistics,10/08/2020,Exp - Purchase Of Goods/Services - Contractors,Business Architecture,LA FOSSE ASSOCIATES LIMITED,186238," 16,560.00 ",Information Management Services,Large,Programme Expenditure
UK Statistics Family,Office for National Statistics,10/08/2020,Exp - Purchase Of Goods/Services - Contractors,Census CCS Data Collection,LA FOSSE ASSOCIATES LIMITED,186238," 17,250.00 ",Information Management Services,Large,Programme Expenditure
UK Statistics Family,Office for National Statistics,10/08/2020,Exp - Purchase Of Goods/Services - Contractors,Tech Delivery Legacy Sp,LA FOSSE ASSOCIATES LIMITED,186238," 18,000.00 ",Information Management Services,Large,Programme Expenditure
UK Statistics Family,Office for National Statistics,10/08/2020,EXP - PURCHASE OF GOODS/SERVICES -  NON IT CONTRACTUAL PAYMENTS,Data Collection Service,Good Things Foundation,186240," 130,040.00 ",Census Assisted Digital Services,SME,Programme Expenditure
UK Statistics Family,Office for National Statistics,11/08/2020,Exp - Purchase Of Goods/Services - IT Contractual Services,International Trade And Transactions,Mango Solutions,186312," 16,320.00 ",Information Management Services,SME,Programme Expenditure
UK Statistics Family,Office for National Statistics,11/08/2020,Exp - Purchase Of Goods/Services - IT Contractual Services,International Trade And Transactions,Mango Solutions,186312," 51,816.00 ",Information Management Services,SME,Programme Expenditure
UK Statistics Family,Office for National Statistics,11/08/2020,Exp - Permanent UK Staff - PRP Voucher Payments,ONS Corporate Funds,Park Retail Ltd,186315," 3,845.30 ",Performance Reward Vouchers,Large,Programme Expenditure
UK Statistics Family,Office for National Statistics,11/08/2020,Exp - Purchase Of Goods/Services - Incentive Payments,Survey Management,Park Retail Ltd,186315," 20,000.00 ",Survey Response Incentive Vouchers,Large,Programme Expenditure
UK Statistics Family,Office for National Statistics,11/08/2020,Exp - Purchase Of Goods/Services - Incentive Payments,Survey Management,Park Retail Ltd,186315," 15,600.00 ",Survey Response Incentive Vouchers,Large,Programme Expenditure
UK Statistics Family,Office for National Statistics,11/08/2020,Exp - Purchase Of Goods/Services - Incentive Payments,Survey Management,Park Retail Ltd,186315," 15,600.00 ",Survey Response Incentive Vouchers,Large,Programme Expenditure
UK Statistics Family,Office for National Statistics,11/08/2020,IT (Owned) At Cost - Additions,Tech Delivery Next Gen IT And Infrastructure,Scc,186318," 74,118.75 ",Software Licenses,Large,Programme Expenditure
UK Statistics Family,Office for National Statistics,11/08/2020,"ICT Outsourcing, Maintenance And Support",Tech Delivery Next Gen IT And Infrastructure,Scc,186318," 11,213.14 ",Software Licenses,Large,Programme Expenditure
UK Statistics Family,Office for National Statistics,11/08/2020,End User Software And Hardware,Tech Delivery Next Gen IT And Infrastructure,Scc,186318," 1,501.98 ",Software Licenses,Large,Programme Expenditure
UK Statistics Family,Office for National Statistics,11/08/2020,Other Goods And Services,Tech Delivery Next Gen IT And Infrastructure,Scc,186318," 14,328.10 ",Software Licenses,Large,Programme Expenditure
UK Statistics Family,Office for National Statistics,11/08/2020,Other Goods And Services,Tech Delivery Next Gen IT And Infrastructure,Scc,186318, 432.00 ,Software Licenses,Large,Programme Expenditure
UK Statistics Family,Office for National Statistics,11/08/2020,Exp - Purchase Of Goods/Services - Contractors,Testing,La International,186321," 13,559.16 ",Information Management Services,SME,Programme Expenditure
UK Statistics Family,Office for National Statistics,11/08/2020,Exp - Purchase Of Goods/Services - Contractors,Testing,La International,186321," 25,598.66 ",Information Management Services,SME,Programme Expenditure
UK Statistics Family,Office for National Statistics,11/08/2020,Exp - Purchase Of Goods/Services - Contractors,Data Architecture,La International,186321," 3,524.22 ",Information Management Services,SME,Programme Expenditure
UK Statistics Family,Office for National Statistics,11/08/2020,Exp - Purchase Of Goods/Services - Contractors,Data Architecture,La International,186321," 3,524.22 ",Information Management Services,SME,Programme Expenditure
UK Statistics Family,Office for National Statistics,11/08/2020,Exp - Purchase Of Goods/Services - Contractors,Data Architecture,La International,186321," 10,316.40 ",Information Management Services,SME,Programme Expenditure
UK Statistics Family,Office for National Statistics,11/08/2020,Exp - Purchase Of Goods/Services - Contractors,Tech Delivery Legacy Sp,La International,186321," 28,514.34 ",Information Management Services,SME,Programme Expenditure
UK Statistics Family,Office for National Statistics,11/08/2020,Exp - Purchase Of Goods/Services - Contractors,IT Applications,La International,186321," 11,290.64 ",Information Management Services,SME,Programme Expenditure
UK Statistics Family,Office for National Statistics,11/08/2020,Exp - Purchase Of Goods/Services - Contractors,Digital Delivery,La International,186321," 7,182.00 ",Information Management Services,SME,Programme Expenditure
UK Statistics Family,Office for National Statistics,11/08/2020,Exp - Purchase Of Goods/Services - Contractors,Digital Delivery,La International,186321," 14,353.20 ",Information Management Services,SME,Programme Expenditure
UK Statistics Family,Office for National Statistics,11/08/2020,Exp - Purchase Of Goods/Services - Contractors,Digital Delivery,La International,186321," 43,059.60 ",Information Management Services,SME,Programme Expenditure
UK Statistics Family,Office for National Statistics,11/08/2020,Exp - Purchase Of Goods/Services - Contractors,Business Architecture,Malikshaw Interim & Executive,186326," 16,560.00 ",Information Management Services,SME,Programme Expenditure
UK Statistics Family,Office for National Statistics,11/08/2020,Exp - Purchase Of Goods/Services - Contractors,Testing,Malikshaw Interim & Executive,186326," 50,700.00 ",Information Management Services,SME,Programme Expenditure
UK Statistics Family,Office for National Statistics,11/08/2020,Exp - Short-Term Contract & Agency Staff - Full Cost,Business Change Support,Talent International,186328," 3,996.00 ",Information Management Services,SME,Programme Expenditure
UK Statistics Family,Office for National Statistics,11/08/2020,Exp - Short-Term Contract & Agency Staff - Full Cost,Data Architecture,Talent International,186328, 295.00 ,Information Management Services,SME,Programme Expenditure
UK Statistics Family,Office for National Statistics,11/08/2020,Exp - Purchase Of Goods/Services - Contractors,Data Architecture,Talent International,186328," 85,080.00 ",Information Management Services,SME,Programme Expenditure
UK Statistics Family,Office for National Statistics,11/08/2020,Exp - Purchase Of Goods/Services - Contractors,Tech Delivery Legacy Sp,Talent International,186328," 15,600.00 ",Information Management Services,SME,Programme Expenditure
UK Statistics Family,Office for National Statistics,11/08/2020,Other Goods And Services,Beyond 2021 Research And Design,The Sensible Code Company,186330," 83,520.00 ",Statistical Services,SME,Programme Expenditure
UK Statistics Family,Office for National Statistics,11/08/2020,Exp - Purchase Of Goods/Services - Contractors,Business Architecture,LA FOSSE ASSOCIATES LIMITED,186331," 20,850.00 ",Information Management Services,Large,Programme Expenditure
UK Statistics Family,Office for National Statistics,11/08/2020,Exp - Purchase Of Goods/Services - Contractors,Portfolio Delivery,LA FOSSE ASSOCIATES LIMITED,186331," 13,800.00 ",Information Management Services,Large,Programme Expenditure
UK Statistics Family,Office for National Statistics,11/08/2020,Exp - Purchase Of Goods/Services - Contractors,Data Architecture,LA FOSSE ASSOCIATES LIMITED,186331," 18,630.00 ",Information Management Services,Large,Programme Expenditure
UK Statistics Family,Office for National Statistics,11/08/2020,Exp - Purchase Of Goods/Services - Contractors,Data Architecture,SmartSourcing Ltd,186332," 50,363.40 ",Information Management Services,SME,Programme Expenditure
UK Statistics Family,Office for National Statistics,12/08/2020,Other Goods And Services,Interviewer Management FiF,Banner Group Ltd,186448," 102,120.00 ",Stationery,SME,Programme Expenditure
UK Statistics Family,Office for National Statistics,12/08/2020,Other Goods And Services,Interview Management IPS,Banner Group Ltd,186448," 37,938.00 ",Stationery,SME,Programme Expenditure
UK Statistics Family,Office for National Statistics,12/08/2020,Exp - Purchase Of Goods/Services - Contractors,GSS Strategy Delivery,Concept Information Technology Ltd T/A Concept Resourcing,186451," 1,246.75 ",Information Management Services,Large,Programme Expenditure
UK Statistics Family,Office for National Statistics,12/08/2020,Exp - Purchase Of Goods/Services - Contractors,Testing,Concept Information Technology Ltd T/A Concept Resourcing,186451," 10,588.32 ",Information Management Services,Large,Programme Expenditure
UK Statistics Family,Office for National Statistics,12/08/2020,Exp - Short-Term Contract & Agency Staff - Full Cost,Business Change Support,Concept Information Technology Ltd T/A Concept Resourcing,186451," 7,391.87 ",Information Management Services,Large,Programme Expenditure
UK Statistics Family,Office for National Statistics,12/08/2020,Exp - Short-Term Contract & Agency Staff - Full Cost,Business Change Support,Concept Information Technology Ltd T/A Concept Resourcing,186451," 4,029.74 ",Information Management Services,Large,Programme Expenditure
UK Statistics Family,Office for National Statistics,12/08/2020,Exp - Short-Term Contract & Agency Staff - Full Cost,Business Change Support,Concept Information Technology Ltd T/A Concept Resourcing,186451," 11,285.17 ",Information Management Services,Large,Programme Expenditure
UK Statistics Family,Office for National Statistics,12/08/2020,Exp - Short-Term Contract & Agency Staff - Full Cost,Business Change Support,Concept Information Technology Ltd T/A Concept Resourcing,186451," 11,089.51 ",Information Management Services,Large,Programme Expenditure
UK Statistics Family,Office for National Statistics,12/08/2020,Exp - Short-Term Contract & Agency Staff - Full Cost,Business Change Support,Concept Information Technology Ltd T/A Concept Resourcing,186451," 3,022.31 ",Information Management Services,Large,Programme Expenditure
UK Statistics Family,Office for National Statistics,12/08/2020,Exp - Short-Term Contract & Agency Staff - Full Cost,Business Change Support,Concept Information Technology Ltd T/A Concept Resourcing,186451," 3,425.28 ",Information Management Services,Large,Programme Expenditure
UK Statistics Family,Office for National Statistics,12/08/2020,Exp - Purchase Of Goods/Services - Contractors,Business Change Support,Concept Information Technology Ltd T/A Concept Resourcing,186451," 7,857.99 ",Information Management Services,Large,Programme Expenditure
UK Statistics Family,Office for National Statistics,12/08/2020,Exp - Purchase Of Goods/Services - Contractors,Business Change Support,Concept Information Technology Ltd T/A Concept Resourcing,186451," 2,417.84 ",Information Management Services,Large,Programme Expenditure
UK Statistics Family,Office for National Statistics,12/08/2020,Exp - Purchase Of Goods/Services - Contractors,Business Change Support,Concept Information Technology Ltd T/A Concept Resourcing,186451, 394.81 ,Information Management Services,Large,Programme Expenditure
UK Statistics Family,Office for National Statistics,12/08/2020,Exp - Short-Term Contract & Agency Staff - Full Cost,International Trade And Transactions,Concept Information Technology Ltd T/A Concept Resourcing,186451," 4,029.74 ",Information Management Services,Large,Programme Expenditure
UK Statistics Family,Office for National Statistics,12/08/2020,Exp - Short-Term Contract & Agency Staff - Full Cost,International Trade And Transactions,Concept Information Technology Ltd T/A Concept Resourcing,186451," 5,037.18 ",Information Management Services,Large,Programme Expenditure
UK Statistics Family,Office for National Statistics,12/08/2020,Exp - Short-Term Contract & Agency Staff - Full Cost,International Trade And Transactions,Concept Information Technology Ltd T/A Concept Resourcing,186451," 7,868.89 ",Information Management Services,Large,Programme Expenditure
UK Statistics Family,Office for National Statistics,12/08/2020,Exp - Short-Term Contract & Agency Staff - Full Cost,International Trade And Transactions,Concept Information Technology Ltd T/A Concept Resourcing,186451," 8,059.48 ",Information Management Services,Large,Programme Expenditure
UK Statistics Family,Office for National Statistics,12/08/2020,Exp - Short-Term Contract & Agency Staff - Full Cost,Productivity Research And Professional Development,Concept Information Technology Ltd T/A Concept Resourcing,186451," 2,828.84 ",Information Management Services,Large,Programme Expenditure
UK Statistics Family,Office for National Statistics,12/08/2020,Exp - Short-Term Contract & Agency Staff - Full Cost,Business Architecture Transformation And Statistical Strategy,Concept Information Technology Ltd T/A Concept Resourcing,186451," 4,029.74 ",Information Management Services,Large,Programme Expenditure
UK Statistics Family,Office for National Statistics,12/08/2020,Exp - Short-Term Contract & Agency Staff - Full Cost,Business Architecture Transformation And Statistical Strategy,Concept Information Technology Ltd T/A Concept Resourcing,186451," 3,235.78 ",Information Management Services,Large,Programme Expenditure
UK Statistics Family,Office for National Statistics,12/08/2020,Exp - Short-Term Contract & Agency Staff - Full Cost,Migration Statistics,Concept Information Technology Ltd T/A Concept Resourcing,186451," 8,084.26 ",Information Management Services,Large,Programme Expenditure
UK Statistics Family,Office for National Statistics,12/08/2020,Exp - Short-Term Contract & Agency Staff - Full Cost,Finance,Concept Information Technology Ltd T/A Concept Resourcing,186451," 2,687.45 ",Information Management Services,Large,Programme Expenditure
UK Statistics Family,Office for National Statistics,12/08/2020,Exp - Short-Term Contract & Agency Staff - Full Cost,Data Architecture,Concept Information Technology Ltd T/A Concept Resourcing,186451," 8,600.67 ",Information Management Services,Large,Programme Expenditure
UK Statistics Family,Office for National Statistics,12/08/2020,Exp - Purchase Of Goods/Services - Contractors,Data Architecture,Concept Information Technology Ltd T/A Concept Resourcing,186451," 14,160.00 ",Information Management Services,Large,Programme Expenditure
UK Statistics Family,Office for National Statistics,12/08/2020,Exp - Purchase Of Goods/Services - IT Contractual Services,Tech Delivery Data As A Platform,Concept Information Technology Ltd T/A Concept Resourcing,186451," 15,000.00 ",Information Management Services,Large,Programme Expenditure
UK Statistics Family,Office for National Statistics,12/08/2020,Exp - Purchase Of Goods/Services - Contractors,Office Of Chief Data And Information,Concept Information Technology Ltd T/A Concept Resourcing,186451," 10,494.00 ",Information Management Services,Large,Programme Expenditure
UK Statistics Family,Office for National Statistics,12/08/2020,Exp - Short-Term Contract & Agency Staff - Full Cost,Business Statistics Transformation,Concept Information Technology Ltd T/A Concept Resourcing,186451," 10,748.09 ",Information Management Services,Large,Programme Expenditure
UK Statistics Family,Office for National Statistics,12/08/2020,Exp - Short-Term Contract & Agency Staff - Full Cost,Interviewer Management TU,Concept Information Technology Ltd T/A Concept Resourcing,186451," 6,677.31 ",Information Management Services,Large,Programme Expenditure
UK Statistics Family,Office for National Statistics,12/08/2020,Other Goods And Services,Interviewer Management TU,Concept Information Technology Ltd T/A Concept Resourcing,186451," 2,189.03 ",Information Management Services,Large,Programme Expenditure
UK Statistics Family,Office for National Statistics,12/08/2020,Exp - Short-Term Contract & Agency Staff - Full Cost,Prices Division,Concept Information Technology Ltd T/A Concept Resourcing,186451," 4,016.14 ",Information Management Services,Large,Programme Expenditure
UK Statistics Family,Office for National Statistics,12/08/2020,Exp - Short-Term Contract & Agency Staff - Full Cost,Prices Division,Concept Information Technology Ltd T/A Concept Resourcing,186451," 7,746.36 ",Information Management Services,Large,Programme Expenditure
UK Statistics Family,Office for National Statistics,12/08/2020,Exp - Short-Term Contract & Agency Staff - Full Cost,Labour Market,Concept Information Technology Ltd T/A Concept Resourcing,186451, 737.48 ,Information Management Services,Large,Programme Expenditure
UK Statistics Family,Office for National Statistics,12/08/2020,Other Goods And Services,Overseas Development,Foreign & Commonwealth Office,186452," 169,483.12 ",Subscription and Support Services,Large,Programme Expenditure
UK Statistics Family,Office for National Statistics,12/08/2020,Exp - Purchase Of Goods And Services Consultants,Productivity Research And Professional Development,Ipsos MORI,186455," 44,703.60 ",Statistical Services,Large,Programme Expenditure
UK Statistics Family,Office for National Statistics,12/08/2020,Capital Major Works >25K,Property Services,Paramount Office Interiors Ltd,186457," 54,170.70 ",Buildings Maintenance,SME,Programme Expenditure
UK Statistics Family,Office for National Statistics,12/08/2020,Major Works Over 25K,Property Services,Paramount Office Interiors Ltd,186457," 87,707.94 ",Buildings Maintenance,SME,Programme Expenditure
UK Statistics Family,Office for National Statistics,12/08/2020,Capital Major Works >25K,Property Newport,Paramount Office Interiors Ltd,186457," 33,821.58 ",Buildings Maintenance,SME,Programme Expenditure
UK Statistics Family,Office for National Statistics,12/08/2020,EXP - PURCHASE OF GOODS/SERVICES -  NON IT CONTRACTUAL PAYMENTS,Data Collection Service,HH Associates Ltd,186462," 46,560.20 ",Print and Post Services,SME,Programme Expenditure
UK Statistics Family,Office for National Statistics,12/08/2020,EXP - PURCHASE OF GOODS/SERVICES -  NON IT CONTRACTUAL PAYMENTS,Covid Infection Survey,HH Associates Ltd,186462," 82,800.99 ",Print and Post Services,SME,Programme Expenditure
UK Statistics Family,Office for National Statistics,12/08/2020,Exp - Purchase Of Goods/Services - Contractors,Business Architecture,Parity Resources Limited,186463," 10,765.44 ",Information Management Services,Large,Programme Expenditure
UK Statistics Family,Office for National Statistics,12/08/2020,Exp - Purchase Of Goods/Services - Contractors,Testing,Parity Resources Limited,186463," 1,440.00 ",Information Management Services,Large,Programme Expenditure
UK Statistics Family,Office for National Statistics,12/08/2020,Exp - Purchase Of Goods/Services - Contractors,Testing,Parity Resources Limited,186463," 15,840.00 ",Information Management Services,Large,Programme Expenditure
UK Statistics Family,Office for National Statistics,12/08/2020,Exp - Purchase Of Goods/Services - Contractors,Programme Other,Parity Resources Limited,186463, 118.80 ,Information Management Services,Large,Programme Expenditure
UK Statistics Family,Office for National Statistics,12/08/2020,Exp - Purchase Of Goods/Services - Contractors,Programme Delivery,Parity Resources Limited,186463," 31,014.72 ",Information Management Services,Large,Programme Expenditure
UK Statistics Family,Office for National Statistics,12/08/2020,Exp - Short-Term Contract & Agency Staff - Full Cost,Strategy And Engagement,Parity Resources Limited,186463," 1,001.22 ",Information Management Services,Large,Programme Expenditure
UK Statistics Family,Office for National Statistics,12/08/2020,Exp - Purchase Of Goods/Services - Contractors,Commercial Services,Parity Resources Limited,186463," 1,666.08 ",Information Management Services,Large,Programme Expenditure
UK Statistics Family,Office for National Statistics,12/08/2020,Exp - Purchase Of Goods/Services - Contractors,Security Advisory,Parity Resources Limited,186463," 24,145.34 ",Information Management Services,Large,Programme Expenditure
UK Statistics Family,Office for National Statistics,12/08/2020,Exp - Short-Term Contract & Agency Staff - Full Cost,Data Architecture,Parity Resources Limited,186463," 1,465.20 ",Information Management Services,Large,Programme Expenditure
UK Statistics Family,Office for National Statistics,12/08/2020,Exp - Purchase Of Goods/Services - Contractors,Data Architecture,Parity Resources Limited,186463," 3,592.56 ",Information Management Services,Large,Programme Expenditure
UK Statistics Family,Office for National Statistics,12/08/2020,Exp - Purchase Of Goods/Services - Contractors,IT Applications,Parity Resources Limited,186463," 31,559.40 ",Information Management Services,Large,Programme Expenditure
UK Statistics Family,Office for National Statistics,12/08/2020,Exp - Purchase Of Goods/Services - Contractors,Digital Delivery,Parity Resources Limited,186463," 17,224.70 ",Information Management Services,Large,Programme Expenditure
UK Statistics Family,Office for National Statistics,12/08/2020,Exp - Purchase Of Goods/Services - Contractors,Digital Delivery,Parity Resources Limited,186463," 17,942.40 ",Information Management Services,Large,Programme Expenditure
UK Statistics Family,Office for National Statistics,12/08/2020,Exp - Purchase Of Goods/Services - IT Contractual Services,Digital Delivery,Parity Resources Limited,186463," 12,111.12 ",Information Management Services,Large,Programme Expenditure
UK Statistics Family,Office for National Statistics,12/08/2020,Exp - Purchase Of Goods/Services - Contractors,Data Science Campus,Parity Resources Limited,186463," 14,344.80 ",Information Management Services,Large,Programme Expenditure
UK Statistics Family,Office for National Statistics,12/08/2020,Exp - Short-Term Contract & Agency Staff - Full Cost,Public Sector And Households,Parity Resources Limited,186463," 1,001.22 ",Information Management Services,Large,Programme Expenditure
UK Statistics Family,Office for National Statistics,12/08/2020,Exp - Purchase Of Goods/Services - Contractors,Data As A Service,Parity Resources Limited,186463," 10,765.44 ",Information Management Services,Large,Programme Expenditure
UK Statistics Family,Office for National Statistics,12/08/2020,Exp - Short-Term Contract & Agency Staff - Full Cost,Labour Market,Parity Resources Limited,186463, 586.08 ,Information Management Services,Large,Programme Expenditure
UK Statistics Family,Office for National Statistics,13/08/2020,Exp - Purchase Of Goods/Services - IT Contractual Services,DST Reapportioning,E Synergy Solutions,186471," 15,870.00 ",Information Management Services,SME,Programme Expenditure
UK Statistics Family,Office for National Statistics,13/08/2020,Exp - Purchase Of Goods/Services - IT Contractual Services,Strategy And Architecture,E Synergy Solutions,186471," 15,840.00 ",Information Management Services,SME,Programme Expenditure
UK Statistics Family,Office for National Statistics,13/08/2020,Exp - Purchase Of Goods/Services - IT Contractual Services,Tech Delivery Legacy Sp,E Synergy Solutions,186471," 90,666.00 ",Information Management Services,SME,Programme Expenditure
UK Statistics Family,Office for National Statistics,13/08/2020,Exp - Purchase Of Goods/Services - IT Contractual Services,Tech Delivery Legacy Sp,Ibm United Kingdom Ltd,186473," 39,540.44 ",Information Management Services,Large,Programme Expenditure
UK Statistics Family,Office for National Statistics,13/08/2020,Exp - Purchase Of Goods/Services - Contractors,Testing,Certes Computing Ltd,186476," 12,810.00 ",Information Management Services,SME,Programme Expenditure
UK Statistics Family,Office for National Statistics,13/08/2020,Exp - Purchase Of Goods/Services - Contractors,Testing,Certes Computing Ltd,186476," 11,785.20 ",Information Management Services,SME,Programme Expenditure
UK Statistics Family,Office for National Statistics,13/08/2020,Exp - Purchase Of Goods/Services - Contractors,Programme Delivery,Certes Computing Ltd,186476," 11,848.81 ",Information Management Services,SME,Programme Expenditure
UK Statistics Family,Office for National Statistics,13/08/2020,Exp - Purchase Of Goods/Services - Contractors,Programme Delivery,Certes Computing Ltd,186476," 15,372.00 ",Information Management Services,SME,Programme Expenditure
UK Statistics Family,Office for National Statistics,13/08/2020,Exp - Purchase Of Goods/Services - Contractors,Commercial Services,Certes Computing Ltd,186476," 1,280.95 ",Information Management Services,SME,Programme Expenditure
UK Statistics Family,Office for National Statistics,13/08/2020,Exp - Purchase Of Goods/Services - Contractors,Commercial Services,Certes Computing Ltd,186476," 14,730.95 ",Information Management Services,SME,Programme Expenditure
UK Statistics Family,Office for National Statistics,13/08/2020,Exp - Purchase Of Goods/Services - Contractors,Data Architecture,Certes Computing Ltd,186476," 17,998.20 ",Information Management Services,SME,Programme Expenditure
UK Statistics Family,Office for National Statistics,13/08/2020,Exp - Purchase Of Goods/Services - Contractors,Data Architecture,Certes Computing Ltd,186476," 20,175.90 ",Information Management Services,SME,Programme Expenditure
UK Statistics Family,Office for National Statistics,13/08/2020,Exp - Purchase Of Goods/Services - Contractors,Tech Delivery Legacy Sp,Certes Computing Ltd,186476," 20,624.10 ",Information Management Services,SME,Programme Expenditure
UK Statistics Family,Office for National Statistics,13/08/2020,Exp - Purchase Of Goods/Services - Contractors,Tech Delivery Legacy Sp,Certes Computing Ltd,186476," 9,799.74 ",Information Management Services,SME,Programme Expenditure
UK Statistics Family,Office for National Statistics,13/08/2020,Exp - Purchase Of Goods/Services - Contractors,Tech Delivery Data As A Platform,Certes Computing Ltd,186476," 16,813.20 ",Information Management Services,SME,Programme Expenditure
UK Statistics Family,Office for National Statistics,13/08/2020,Exp - Purchase Of Goods/Services - Contractors,Tech Delivery Data As A Platform,Certes Computing Ltd,186476," 19,215.00 ",Information Management Services,SME,Programme Expenditure
UK Statistics Family,Office for National Statistics,13/08/2020,Exp - Purchase Of Goods/Services - Contractors,Digital Delivery,Certes Computing Ltd,186476," 12,169.20 ",Information Management Services,SME,Programme Expenditure
UK Statistics Family,Office for National Statistics,13/08/2020,Exp - Purchase Of Goods/Services - Contractors,Digital Delivery,Certes Computing Ltd,186476," 17,934.00 ",Information Management Services,SME,Programme Expenditure
UK Statistics Family,Office for National Statistics,13/08/2020,Exp - Purchase Of Goods/Services - Contractors,Digital Delivery,Certes Computing Ltd,186476," 16,204.79 ",Information Management Services,SME,Programme Expenditure
UK Statistics Family,Office for National Statistics,13/08/2020,Exp - Purchase Of Goods/Services - Contractors,Security Advisory,La International,186477," 4,165.02 ",Information Management Services,SME,Programme Expenditure
UK Statistics Family,Office for National Statistics,13/08/2020,Exp - Purchase Of Goods/Services - Contractors,Data Architecture,La International,186477," 7,689.24 ",Information Management Services,SME,Programme Expenditure
UK Statistics Family,Office for National Statistics,13/08/2020,Exp - Purchase Of Goods/Services - Contractors,Tech Delivery SRS,La International,186477," 5,023.62 ",Information Management Services,SME,Programme Expenditure
UK Statistics Family,Office for National Statistics,13/08/2020,Exp - Purchase Of Goods/Services - Contractors,Tech Delivery Data As A Platform,La International,186477," 13,635.54 ",Information Management Services,SME,Programme Expenditure
UK Statistics Family,Office for National Statistics,13/08/2020,Exp - Purchase Of Goods/Services - Contractors,IT Applications,La International,186477," 10,339.80 ",Information Management Services,SME,Programme Expenditure
UK Statistics Family,Office for National Statistics,13/08/2020,Exp - Purchase Of Goods/Services - Contractors,Digital Delivery,La International,186477," 8,970.84 ",Information Management Services,SME,Programme Expenditure
UK Statistics Family,Office for National Statistics,13/08/2020,Exp - Purchase Of Goods/Services - Contractors,Digital Delivery,La International,186477," 9,998.76 ",Information Management Services,SME,Programme Expenditure
UK Statistics Family,Office for National Statistics,13/08/2020,Surveys,Prices Division,Kantar UK Ltd,186481," 206,198.17 ",Statistical Services,Large,Programme Expenditure
UK Statistics Family,Office for National Statistics,13/08/2020,Surveys,Prices Division,Kantar UK Ltd,186481," 1,505.83 ",Statistical Services,Large,Programme Expenditure
UK Statistics Family,Office for National Statistics,13/08/2020,Telecoms,IT Operations,Freedom Communications (UK) Ltd,186482," 43,303.85 ",Information Management Services,Large,Programme Expenditure
UK Statistics Family,Office for National Statistics,13/08/2020,Exp - Short-Term Contract & Agency Staff - Full Cost,Senior Management Team Design,Parity Resources Limited,186484, 637.20 ,Information Management Services,Large,Programme Expenditure
UK Statistics Family,Office for National Statistics,13/08/2020,Exp - Purchase Of Goods/Services - Contractors,Programme Delivery,Parity Resources Limited,186484," 13,860.00 ",Information Management Services,Large,Programme Expenditure
UK Statistics Family,Office for National Statistics,13/08/2020,Exp - Purchase Of Goods/Services - Contractors,Digital Delivery,Parity Resources Limited,186484," 17,942.40 ",Information Management Services,Large,Programme Expenditure
UK Statistics Family,Office for National Statistics,13/08/2020,Exp - Purchase Of Goods/Services - IT Contractual Services,Tech Delivery Next Gen IT And Infrastructure,Diegesis Limited,186485," 56,640.00 ",Information Management Services,Large,Programme Expenditure
UK Statistics Family,Office for National Statistics,13/08/2020,Exp - Purchase Of Goods/Services - Contractor Travel,Tech Delivery Next Gen IT And Infrastructure,Diegesis Limited,186485, 969.60 ,Information Management Services,Large,Programme Expenditure
UK Statistics Family,Office for National Statistics,14/08/2020,Exp - Purchase Of Goods/Services - Contractors,Security Advisory,Certes Computing Ltd,186491," 19,151.09 ",Information Management Services,SME,Programme Expenditure
UK Statistics Family,Office for National Statistics,14/08/2020,Exp - Purchase Of Goods/Services - Contractors,Security Advisory,Certes Computing Ltd,186491," 9,991.87 ",Information Management Services,SME,Programme Expenditure
UK Statistics Family,Office for National Statistics,14/08/2020,Exp - Purchase Of Goods/Services - Contractors,Data Architecture,Certes Computing Ltd,186491," 15,838.42 ",Information Management Services,SME,Programme Expenditure
UK Statistics Family,Office for National Statistics,14/08/2020,Exp - Purchase Of Goods/Services - Contractors,Strategy And Architecture,Certes Computing Ltd,186491," 19,215.00 ",Information Management Services,SME,Programme Expenditure
UK Statistics Family,Office for National Statistics,14/08/2020,Exp - Purchase Of Goods/Services - Contractors,Tech Delivery Data As A Platform,Certes Computing Ltd,186491," 12,009.42 ",Information Management Services,SME,Programme Expenditure
UK Statistics Family,Office for National Statistics,14/08/2020,Exp - Purchase Of Goods/Services - Contractors,IT Applications,Certes Computing Ltd,186491," 17,613.90 ",Information Management Services,SME,Programme Expenditure
UK Statistics Family,Office for National Statistics,14/08/2020,Exp - Purchase Of Goods/Services - Contractors,Digital Delivery,Certes Computing Ltd,186491," 3,600.00 ",Information Management Services,SME,Programme Expenditure
UK Statistics Family,Office for National Statistics,14/08/2020,Exp - Purchase Of Goods/Services - Contractors,Digital Delivery,Certes Computing Ltd,186491," 17,998.20 ",Information Management Services,SME,Programme Expenditure
UK Statistics Family,Office for National Statistics,14/08/2020,Stationery,Lodgecard,Royal Bank of Scotland,186493, 958.29 ,Multiple Procurement Card Purchases  - Stationery ,Large,Programme Expenditure
UK Statistics Family,Office for National Statistics,14/08/2020,Other Goods And Services,GPC,Royal Bank of Scotland,186493," 33,442.02 ",Multiple Procurement Card Purchases - other goods/services  ,Large,Programme Expenditure
UK Statistics Family,Office for National Statistics,14/08/2020,Travel And Subsistence,Car Hire,Royal Bank of Scotland,186493," 1,762.61 ",Multiple Procurement Card Purchases - Vehicle Hire  ,Large,Programme Expenditure
UK Statistics Family,Office for National Statistics,14/08/2020,Surveys,Crime Statistics,Kantar UK Ltd,186496," 511,080.00 ",Statistical Services,Large,Programme Expenditure
UK Statistics Family,Office for National Statistics,14/08/2020,Exp - Purchase Of Goods/Services - Contractors,Tech Delivery Data As A Platform,Talent International,186497," 17,999.70 ",Information Management Services,SME,Programme Expenditure
UK Statistics Family,Office for National Statistics,14/08/2020,Exp - Purchase Of Goods/Services - Contractors,Digital Delivery,Talent International,186497," 15,120.00 ",Information Management Services,SME,Programme Expenditure
UK Statistics Family,Office for National Statistics,17/08/2020,Exp - Permanent UK Staff - PRP Voucher Payments,ONS Corporate Funds,Park Retail Ltd,186613,-79.12 ,Performance Reward Vouchers,Large,Programme Expenditure
UK Statistics Family,Office for National Statistics,17/08/2020,Exp - Purchase Of Goods/Services - Incentive Payments,Survey Management,Park Retail Ltd,186613," 80,201.24 ",Survey Response Incentive Vouchers,Large,Programme Expenditure
UK Statistics Family,Office for National Statistics,17/08/2020,Exp - Purchase Of Goods/Services - Incentive Payments,Survey Management,Park Retail Ltd,186613," 11,675.62 ",Performance Reward Vouchers,Large,Programme Expenditure
UK Statistics Family,Office for National Statistics,17/08/2020,Exp - Purchase Of Goods/Services - Incentive Payments,Survey Management,Park Retail Ltd,186613," 22,114.09 ",Survey Response Incentive Vouchers,Large,Programme Expenditure
UK Statistics Family,Office for National Statistics,17/08/2020,"ICT Outsourcing, Maintenance And Support",Digital Publishing,Digital Accessibility Centre,186614," 4,867.15 ",Information Management Services,SME,Programme Expenditure
UK Statistics Family,Office for National Statistics,17/08/2020,"ICT Outsourcing, Maintenance And Support",IT Operations,Digital Accessibility Centre,186614," 22,260.00 ",Information Management Services,SME,Programme Expenditure
UK Statistics Family,Office for National Statistics,17/08/2020,FM Contract Payments,FM Payments,Vinci Construction UK Limited,186615," 95,835.87 ",Facilities Mangement Services,Large,Programme Expenditure
UK Statistics Family,Office for National Statistics,17/08/2020,Exp - Purchase Of Goods And Services Consultants,Consultancy Management,Deloitte,186622," 42,600.00 ",Consultancy,Large,Programme Expenditure
UK Statistics Family,Office for National Statistics,17/08/2020,Exp - Purchase Of Goods/Services - IT Contractual Services,Tech Delivery Legacy Sp,CTS (Cloud Technology Solutions Ltd),186625," 51,519.00 ",DST Infrastructure Preparation,Large,Programme Expenditure
UK Statistics Family,Office for National Statistics,17/08/2020,Exp - Purchase Of Goods/Services - IT Contractual Services,IT Operations,CTS (Cloud Technology Solutions Ltd),186625," 420,000.00 ",DST Infrastructure Preparation,Large,Programme Expenditure
UK Statistics Family,Office for National Statistics,18/08/2020,Specialist User Software And Hardware,Digital Delivery,Xma Limited,186638," 226,110.64 ",Leasing of Devices,Large,Programme Expenditure
UK Statistics Family,Office for National Statistics,18/08/2020,Other Goods And Services,Digital Delivery,Xma Limited,186638," 1,188.00 ",Leasing of Devices,Large,Programme Expenditure
UK Statistics Family,Office for National Statistics,18/08/2020,Exp - Purchase Of Goods/Services - Contractors,Strategy And Architecture,Certes Computing Ltd,186640," 20,815.50 ",Information Management Services,SME,Programme Expenditure
UK Statistics Family,Office for National Statistics,18/08/2020,Exp - Purchase Of Goods/Services - Contractors,Tech Delivery Legacy Sp,Certes Computing Ltd,186640," 16,813.20 ",Information Management Services,SME,Programme Expenditure
UK Statistics Family,Office for National Statistics,18/08/2020,Exp - Purchase Of Goods/Services - Contractors,Tech Delivery Legacy Sp,Certes Computing Ltd,186640," 17,998.20 ",Information Management Services,SME,Programme Expenditure
UK Statistics Family,Office for National Statistics,18/08/2020,Exp - Purchase Of Goods/Services - Contractors,Tech Delivery Legacy Sp,Certes Computing Ltd,186640," 17,998.20 ",Information Management Services,SME,Programme Expenditure
UK Statistics Family,Office for National Statistics,18/08/2020,Exp - Purchase Of Goods/Services - Contractors,Digital Delivery,Certes Computing Ltd,186640," 16,204.79 ",Information Management Services,SME,Programme Expenditure
UK Statistics Family,Office for National Statistics,18/08/2020,Exp - Purchase Of Goods/Services - Contractors,Testing,La International,186641," 10,252.26 ",Information Management Services,SME,Programme Expenditure
UK Statistics Family,Office for National Statistics,18/08/2020,Exp - Purchase Of Goods/Services - Contractors,Testing,La International,186641," 16,499.76 ",Information Management Services,SME,Programme Expenditure
UK Statistics Family,Office for National Statistics,18/08/2020,Exp - Purchase Of Goods/Services - Contractors,Data Architecture,La International,186641," 10,572.72 ",Information Management Services,SME,Programme Expenditure
UK Statistics Family,Office for National Statistics,18/08/2020,Exp - Purchase Of Goods/Services - Contractors,Digital Delivery,La International,186641," 4,485.42 ",Information Management Services,SME,Programme Expenditure
UK Statistics Family,Office for National Statistics,18/08/2020,Exp - Purchase Of Goods/Services - Contractors,Digital Delivery,La International,186641," 3,203.88 ",Information Management Services,SME,Programme Expenditure
UK Statistics Family,Office for National Statistics,18/08/2020,Exp - Purchase Of Goods/Services - Contractors,Digital Delivery,La International,186641," 19,223.10 ",Information Management Services,SME,Programme Expenditure
UK Statistics Family,Office for National Statistics,18/08/2020,Exp - Purchase Of Goods/Services - Contractors,IT Applications,Malikshaw Interim & Executive,186646," 16,560.00 ",Information Management Services,SME,Programme Expenditure
UK Statistics Family,Office for National Statistics,18/08/2020,Exp - Purchase Of Goods/Services - Contractors,Digital Delivery,Malikshaw Interim & Executive,186646," 17,189.40 ",Information Management Services,SME,Programme Expenditure
UK Statistics Family,Office for National Statistics,18/08/2020,Exp - Purchase Of Goods/Services - Contractors,Testing,Parity Resources Limited,186649," 15,475.32 ",Information Management Services,Large,Programme Expenditure
UK Statistics Family,Office for National Statistics,18/08/2020,Exp - Purchase Of Goods/Services - Contractors,Digital Delivery,Parity Resources Limited,186649," 17,224.70 ",Information Management Services,Large,Programme Expenditure
UK Statistics Family,Office for National Statistics,18/08/2020,Exp - Purchase Of Goods/Services - Contractors,Digital Delivery,Parity Resources Limited,186649," 12,799.98 ",Information Management Services,Large,Programme Expenditure
UK Statistics Family,Office for National Statistics,19/08/2020,Exp - Purchase Of Goods/Services - IT Contractual Services,Digital Publishing,Swirrl It Ltd,186770," 32,889.60 ",Information Management Services,SME,Programme Expenditure
UK Statistics Family,Office for National Statistics,19/08/2020,Exp - Short-Term Contract & Agency Staff - Full Cost,Stakeholder Engagement And Comms,La International,186780," 8,285.05 ",Information Management Services,SME,Programme Expenditure
UK Statistics Family,Office for National Statistics,19/08/2020,Exp - Short-Term Contract & Agency Staff - Full Cost,Digital Publishing,La International,186780, 680.65 ,Information Management Services,SME,Programme Expenditure
UK Statistics Family,Office for National Statistics,19/08/2020,Exp - Purchase Of Goods/Services - Contractors,Data Architecture,La International,186780," 18,454.18 ",Information Management Services,SME,Programme Expenditure
UK Statistics Family,Office for National Statistics,19/08/2020,Exp - Purchase Of Goods/Services - Contractors,Testing,Malikshaw Interim & Executive,186787," 13,200.00 ",Information Management Services,SME,Programme Expenditure
UK Statistics Family,Office for National Statistics,19/08/2020,Exp - Purchase Of Goods/Services - Contractors,Business Architecture Transformation And Statistical Strategy,Malikshaw Interim & Executive,186787," 14,400.00 ",Information Management Services,SME,Programme Expenditure
UK Statistics Family,Office for National Statistics,19/08/2020,EXP - PURCHASE OF GOODS/SERVICES -  NON IT CONTRACTUAL PAYMENTS,Covid Infection Survey,HH Associates Ltd,186788," 64,805.12 ",Print and Post Services,SME,Programme Expenditure
UK Statistics Family,Office for National Statistics,19/08/2020,Exp - Short-Term Contract & Agency Staff - Full Cost,Stakeholder Engagement And Comms,Parity Resources Limited,186792," 1,001.22 ",Information Management Services,Large,Programme Expenditure
UK Statistics Family,Office for National Statistics,19/08/2020,Exp - Purchase Of Goods/Services - Contractors,Stakeholder Engagement And Comms,Parity Resources Limited,186792," 3,929.40 ",Information Management Services,Large,Programme Expenditure
UK Statistics Family,Office for National Statistics,19/08/2020,Exp - Purchase Of Goods/Services - Contractors,Digital Publishing,Parity Resources Limited,186792," 1,440.00 ",Information Management Services,Large,Programme Expenditure
UK Statistics Family,Office for National Statistics,19/08/2020,"ICT Outsourcing, Maintenance And Support",Digital Publishing,Parity Resources Limited,186792," 12,240.00 ",Information Management Services,Large,Programme Expenditure
UK Statistics Family,Office for National Statistics,19/08/2020,Exp - Purchase Of Goods/Services - Contractors,International Trade And Transactions,Parity Resources Limited,186792," 17,850.00 ",Information Management Services,Large,Programme Expenditure
UK Statistics Family,Office for National Statistics,19/08/2020,Exp - Short-Term Contract & Agency Staff - Full Cost,Business Architecture Transformation And Statistical Strategy,Parity Resources Limited,186792, 732.60 ,Information Management Services,Large,Programme Expenditure
UK Statistics Family,Office for National Statistics,19/08/2020,Exp - Purchase Of Goods/Services - Contractors,Researcher Support And Data Access ,Parity Resources Limited,186792," 3,008.22 ",Information Management Services,Large,Programme Expenditure
UK Statistics Family,Office for National Statistics,19/08/2020,Exp - Purchase Of Goods/Services - Contractors,Commercial Services,Parity Resources Limited,186792," 19,159.92 ",Information Management Services,Large,Programme Expenditure
UK Statistics Family,Office for National Statistics,19/08/2020,Exp - Short-Term Contract & Agency Staff - Full Cost,Recruitment ,Parity Resources Limited,186792," 2,043.29 ",Information Management Services,Large,Programme Expenditure
UK Statistics Family,Office for National Statistics,19/08/2020,Exp - Purchase Of Goods/Services - Contractors,Strategy And Architecture,Parity Resources Limited,186792," 12,687.84 ",Information Management Services,Large,Programme Expenditure
UK Statistics Family,Office for National Statistics,19/08/2020,Exp - Purchase Of Goods/Services - Contractors,Tech Delivery Legacy Sp,Parity Resources Limited,186792," 1,153.44 ",Information Management Services,Large,Programme Expenditure
UK Statistics Family,Office for National Statistics,19/08/2020,Exp - Purchase Of Goods/Services - IT Contractual Services,Office Of Chief Data And Information,Akamai Technologies Limited,186797," 72,400.01 ",Information Management Services,SME,Programme Expenditure
UK Statistics Family,Office for National Statistics,19/08/2020,End User Software And Hardware,IT Operations,Kingsfield Computer Products LTD ,186798," 53,628.08 ",Computers and Peripherals ,SME,Programme Expenditure
UK Statistics Family,Office for National Statistics,20/08/2020,Surveys,Labour Market,University of Durham,186808," 268,875.19 ",Statistical Services,Large,Programme Expenditure
UK Statistics Family,Office for National Statistics,20/08/2020,IT (Owned) At Cost - Additions,IT Operations,Probrand Ltd,186813," 77,600.10 ",Computers and Peripherals ,SME,Programme Expenditure
UK Statistics Family,Office for National Statistics,20/08/2020,EXP - PURCHASE OF GOODS/SERVICES -  NON IT CONTRACTUAL PAYMENTS,Data Collection Service,K International,186819," 33,737.65 ",Translation Services,Large,Programme Expenditure
UK Statistics Family,Office for National Statistics,20/08/2020,Exp - Purchase Of Goods/Services - Contractors,Stakeholder Engagement And Comms,Parity Resources Limited,186824," 3,632.04 ",Information Management Services,Large,Programme Expenditure
UK Statistics Family,Office for National Statistics,20/08/2020,Exp - Short-Term Contract & Agency Staff - Full Cost,International Trade And Transactions,Parity Resources Limited,186824," 5,006.10 ",Information Management Services,Large,Programme Expenditure
UK Statistics Family,Office for National Statistics,20/08/2020,Exp - Purchase Of Goods/Services - Contractors,International Trade And Transactions,Parity Resources Limited,186824," 16,020.00 ",Information Management Services,Large,Programme Expenditure
UK Statistics Family,Office for National Statistics,20/08/2020,Exp - Purchase Of Goods/Services - Contractors,Business Statistics Transformation,Parity Resources Limited,186824," 11,214.00 ",Information Management Services,Large,Programme Expenditure
UK Statistics Family,Office for National Statistics,20/08/2020,Exp - Purchase Of Goods/Services - Other ICT Costs Software,Security Operations,Hut Six Security Limited,186826," 80,640.00 ",Software Licenses,SME,Programme Expenditure
UK Statistics Family,Office for National Statistics,21/08/2020,Exp - Purchase Of Goods/Services - Contractors,Testing,La International,186901," 10,252.26 ",Information Management Services,SME,Programme Expenditure
UK Statistics Family,Office for National Statistics,21/08/2020,Exp - Purchase Of Goods/Services - Contractors,Testing,La International,186901," 6,087.30 ",Information Management Services,SME,Programme Expenditure
UK Statistics Family,Office for National Statistics,21/08/2020,Exp - Purchase Of Goods/Services - Contractors,Sustainability And Inequalities,La International,186901," 5,051.04 ",Information Management Services,SME,Programme Expenditure
UK Statistics Family,Office for National Statistics,21/08/2020,Exp - Purchase Of Goods/Services - Contractors,Tech Delivery SRS,La International,186901," 3,588.30 ",Information Management Services,SME,Programme Expenditure
UK Statistics Family,Office for National Statistics,21/08/2020,Exp - Purchase Of Goods/Services - Contractors,IT Applications,La International,186901," 21,043.44 ",Information Management Services,SME,Programme Expenditure
UK Statistics Family,Office for National Statistics,21/08/2020,Specialist User Software And Hardware,Digital Delivery,CTS (Cloud Technology Solutions Ltd),186909," 220,334.16 ",DST Infrastructure Preparation,Large,Programme Expenditure
UK Statistics Family,Office for National Statistics,21/08/2020,Exp - Short-Term Contract & Agency Staff - Full Cost,Senior Management Team Design,Parity Resources Limited,186913, 785.88 ,Information Management Services,Large,Programme Expenditure
UK Statistics Family,Office for National Statistics,21/08/2020,Exp - Purchase Of Goods/Services - Contractors,Programme Delivery,Parity Resources Limited,186913," 16,471.86 ",Information Management Services,Large,Programme Expenditure
UK Statistics Family,Office for National Statistics,21/08/2020,Exp - Short-Term Contract & Agency Staff - Full Cost,Strategy And Engagement,Parity Resources Limited,186913," 1,001.22 ",Information Management Services,Large,Programme Expenditure
UK Statistics Family,Office for National Statistics,21/08/2020,Exp - Short-Term Contract & Agency Staff - Full Cost,Data Architecture,Parity Resources Limited,186913," 1,326.60 ",Information Management Services,Large,Programme Expenditure
UK Statistics Family,Office for National Statistics,21/08/2020,Exp - Purchase Of Goods/Services - Contractors,Data Architecture,Parity Resources Limited,186913," 3,592.56 ",Information Management Services,Large,Programme Expenditure
UK Statistics Family,Office for National Statistics,21/08/2020,Exp - Purchase Of Goods/Services - Contractors,IT Applications,Parity Resources Limited,186913," 2,307.00 ",Information Management Services,Large,Programme Expenditure
UK Statistics Family,Office for National Statistics,21/08/2020,Exp - Short-Term Contract & Agency Staff - Full Cost,Digital Delivery,Parity Resources Limited,186913, 785.88 ,Information Management Services,Large,Programme Expenditure
UK Statistics Family,Office for National Statistics,21/08/2020,Exp - Short-Term Contract & Agency Staff - Full Cost,Public Sector And Households,Parity Resources Limited,186913," 1,001.22 ",Information Management Services,Large,Programme Expenditure
UK Statistics Family,Office for National Statistics,21/08/2020,Exp - Purchase Of Goods/Services - Contractors,Social Survey Transformation Titchfield,Parity Resources Limited,186913," 17,631.00 ",Information Management Services,Large,Programme Expenditure
UK Statistics Family,Office for National Statistics,21/08/2020,Exp - Short-Term Contract & Agency Staff - Full Cost,Labour Market,Parity Resources Limited,186913, 732.60 ,Information Management Services,Large,Programme Expenditure
UK Statistics Family,Office for National Statistics,21/08/2020,Exp - Short-Term Contract & Agency Staff - Full Cost,Labour Market,Parity Resources Limited,186913," 1,584.00 ",Information Management Services,Large,Programme Expenditure
UK Statistics Family,Office for National Statistics,21/08/2020,Exp - Purchase Of Goods/Services - Contractors,Digital Delivery,LA FOSSE ASSOCIATES LIMITED,186915," 13,679.77 ",Information Management Services,Large,Programme Expenditure
UK Statistics Family,Office for National Statistics,21/08/2020,Exp - Purchase Of Goods/Services - Contractors,Digital Delivery,LA FOSSE ASSOCIATES LIMITED,186915," 14,400.00 ",Information Management Services,Large,Programme Expenditure
UK Statistics Family,Office for National Statistics,24/08/2020,Exp - Purchase Of Goods/Services - IT Contractual Services,Tech Delivery Data As A Platform,Kainos,186982," 189,746.60 ",Information Management Services,Large,Programme Expenditure
UK Statistics Family,Office for National Statistics,24/08/2020,Hosting,Tech Delivery Data As A Platform,Kainos,186982," 7,782.70 ",Information Management Services,Large,Programme Expenditure
UK Statistics Family,Office for National Statistics,24/08/2020,Exp - Permanent UK Staff - PRP Voucher Payments,ONS Corporate Funds,Park Retail Ltd,186983," 6,066.98 ",Performance Reward Vouchers,Large,Programme Expenditure
UK Statistics Family,Office for National Statistics,24/08/2020,Exp - Purchase Of Goods/Services - Incentive Payments,Survey Management,Park Retail Ltd,186983," 39,969.46 ",Survey Response Incentive Vouchers,Large,Programme Expenditure
UK Statistics Family,Office for National Statistics,24/08/2020,Exp - Purchase Of Goods/Services - Incentive Payments,Survey Management,Park Retail Ltd,186983," 53,366.43 ",Survey Response Incentive Vouchers,Large,Programme Expenditure
UK Statistics Family,Office for National Statistics,24/08/2020,Exp - Purchase Of Goods/Services - Incentive Payments,Survey Management,Park Retail Ltd,186983," 3,733.54 ",Survey Response Incentive Vouchers,Large,Programme Expenditure
UK Statistics Family,Office for National Statistics,24/08/2020,Exp - Purchase Of Goods/Services - Incentive Payments,Survey Management,Park Retail Ltd,186983," 20,595.81 ",Survey Response Incentive Vouchers,Large,Programme Expenditure
UK Statistics Family,Office for National Statistics,24/08/2020,Exp - Purchase Of Goods/Services - Incentive Payments,Survey Management,Park Retail Ltd,186983," 17,391.13 ",Survey Response Incentive Vouchers,Large,Programme Expenditure
UK Statistics Family,Office for National Statistics,24/08/2020,EXP - PURCHASE OF GOODS/SERVICES -  NON IT CONTRACTUAL PAYMENTS,Covid Infection Survey,HH Associates Ltd,186990," 317,089.50 ",Print and Post Services,SME,Programme Expenditure
UK Statistics Family,Office for National Statistics,24/08/2020,Surveys,Crime Statistics,Kantar UK Ltd,186991," 279,774.00 ",Statistical Services,Large,Programme Expenditure
UK Statistics Family,Office for National Statistics,25/08/2020,Exp - Purchase Of Goods/Services - IT Contractual Services,Digital Publishing,Swirrl It Ltd,186998," 32,889.60 ",Information Management Services,SME,Programme Expenditure
UK Statistics Family,Office for National Statistics,25/08/2020,EXP - PURCHASE OF GOODS/SERVICES -  NON IT CONTRACTUAL PAYMENTS,Data Collection Service,Leidos Innovations UK Limited,187012," 3,979,295.33 ",Questionnaire Management,Large,Programme Expenditure
UK Statistics Family,Office for National Statistics,25/08/2020,Surveys,Crime Statistics,Kantar UK Ltd,187014," 42,658.80 ",Statistical Services,Large,Programme Expenditure
UK Statistics Family,Office for National Statistics,25/08/2020,Exp - Purchase Of Goods And Services Consultants,Senior Management Team Design,Bloom Procurement Services Ltd,187015," 670,990.99 ",Consultancy,Large,Programme Expenditure
UK Statistics Family,Office for National Statistics,26/08/2020,Surveys,Census & Soc Methodology Dd,University of Southampton,187032," 27,978.00 ",Statistical Services,SME,Programme Expenditure
UK Statistics Family,Office for National Statistics,26/08/2020,Exp - Purchase Of Goods/Services - Contractors,Security Advisory,Certes Computing Ltd,187034," 19,215.12 ",Information Management Services,SME,Programme Expenditure
UK Statistics Family,Office for National Statistics,26/08/2020,Exp - Purchase Of Goods/Services - Contractors,Digital Delivery,Certes Computing Ltd,187034," 20,815.50 ",Information Management Services,SME,Programme Expenditure
UK Statistics Family,Office for National Statistics,26/08/2020,Marketing & Media,Social Surveys Division,APS Group,187037," 63,216.40 ",Mailing Services,Large,Programme Expenditure
UK Statistics Family,Office for National Statistics,26/08/2020,Permanent Staff Costs,Data Architecture,Cabinet Office,187038," 26,231.84 ",Fast Stream Recruitment,Large,Programme Expenditure
UK Statistics Family,Office for National Statistics,26/08/2020,Exp - Short-Term Contract & Agency Staff - Full Cost,Business Architecture Transformation And Statistical Strategy,Parity Resources Limited,187041, 732.60 ,Information Management Services,Large,Programme Expenditure
UK Statistics Family,Office for National Statistics,26/08/2020,Exp - Purchase Of Goods/Services - Contractors,Security Advisory,Parity Resources Limited,187041," 25,375.68 ",Information Management Services,Large,Programme Expenditure
UK Statistics Family,Office for National Statistics,26/08/2020,Exp - Short-Term Contract & Agency Staff - Full Cost,Data Architecture,Parity Resources Limited,187041," 1,465.20 ",Information Management Services,Large,Programme Expenditure
UK Statistics Family,Office for National Statistics,26/08/2020,Exp - Purchase Of Goods/Services - Contractors,Data Architecture,Parity Resources Limited,187041," 3,592.56 ",Information Management Services,Large,Programme Expenditure
UK Statistics Family,Office for National Statistics,26/08/2020,Exp - Purchase Of Goods/Services - Contractors,IT Applications,Parity Resources Limited,187041," 2,307.00 ",Information Management Services,Large,Programme Expenditure
UK Statistics Family,Office for National Statistics,26/08/2020,Exp - Short-Term Contract & Agency Staff - Full Cost,Labour Market,Parity Resources Limited,187041, 586.08 ,Information Management Services,Large,Programme Expenditure
UK Statistics Family,Office for National Statistics,26/08/2020,Exp - Short-Term Contract & Agency Staff - Full Cost,Labour Market,Parity Resources Limited,187041, 851.40 ,Information Management Services,Large,Programme Expenditure
UK Statistics Family,Office for National Statistics,07/08/2020,EXP - PURCHASE OF GOODS/SERVICES -  NON IT CONTRACTUAL PAYMENTS,Census CCS Data Collection,Adecco UK Limited,30002147," 1,204,800.00 ",Census People Services Contractual,SME,Programme Expenditure
UK Statistics Family,Office for National Statistics,07/08/2020,EXP - PURCHASE OF GOODS/SERVICES -  NON IT CONTRACTUAL PAYMENTS,Census CCS Data Collection,Adecco UK Limited,30002148," 254,724.00 ",Census People Services Contractual,SME,Programme Expenditure
UK Statistics Family,Office for National Statistics,07/08/2020,Exp - Purchase Of Goods/Services - IT Contractual Services,DST Reapportioning,E Synergy Solutions,30002149," 149,916.00 ",Information Management Services,SME,Programme Expenditure
UK Statistics Family,Office for National Statistics,07/08/2020,Exp - Purchase Of Goods/Services - IT Contractual Services,Tech Delivery Data As A Platform,Kainos,30002150," 217,339.00 ",Information Management Services,Large,Programme Expenditure
UK Statistics Family,Office for National Statistics,07/08/2020,Hosting,Tech Delivery Data As A Platform,Kainos,30002150," 9,170.52 ",Information Management Services,Large,Programme Expenditure
UK Statistics Family,Office for National Statistics,07/08/2020,Exp - Purchase Of Goods/Services - Contractor Travel,Tech Delivery Data As A Platform,Kainos,30002150," 6,239.70 ",Information Management Services,Large,Programme Expenditure
UK Statistics Family,Office for National Statistics,07/08/2020,Exp - Purchase Of Goods/Services - Incentive Payments,Covid Infection Survey,Sodexo Motivation Solutions U.K. ltd,30002151," 673,451.04 ",Survey Response Incentive Vouchers,Large,Programme Expenditure
UK Statistics Family,Office for National Statistics,12/08/2020,Exp - Purchase Of Goods/Services - Incentive Payments,Covid Infection Survey,Sodexo Motivation Solutions U.K. ltd,30002158," 535,046.56 ",Survey Response Incentive Vouchers,Large,Programme Expenditure
UK Statistics Family,Office for National Statistics,12/08/2020,Exp - Purchase Of Goods/Services - Incentive Payments,Covid Infection Survey,Sodexo Motivation Solutions U.K. ltd,30002159," 89,062.40 ",Survey Response Incentive Vouchers,Large,Programme Expenditure
UK Statistics Family,Office for National Statistics,12/08/2020,Exp - Purchase Of Goods/Services - Incentive Payments,Covid Infection Survey,Sodexo Motivation Solutions U.K. ltd,30002160," 333,724.59 ",Survey Response Incentive Vouchers,Large,Programme Expenditure
UK Statistics Family,Office for National Statistics,17/08/2020,Exp - Purchase Of Goods/Services - Incentive Payments,Covid Infection Survey,Sodexo Motivation Solutions U.K. ltd,30002168," 587,172.36 ",Survey Response Incentive Vouchers,Large,Programme Expenditure
UK Statistics Family,Office for National Statistics,19/08/2020,Exp - Purchase Of Goods/Services - Incentive Payments,Covid Infection Survey,Sodexo Motivation Solutions U.K. ltd,30002175," 125,542.40 ",Survey Response Incentive Vouchers,Large,Programme Expenditure
UK Statistics Family,Office for National Statistics,26/08/2020,Exp - Purchase Of Goods/Services - Incentive Payments,Covid Infection Survey,Sodexo Motivation Solutions U.K. ltd,30002179," 703,953.32 ",Survey Response Incentive Vouchers,Large,Programme Expenditure
UK Statistics Family,Office for National Statistics,26/08/2020,Exp - Purchase Of Goods/Services - Incentive Payments,Covid Infection Survey,Sodexo Motivation Solutions U.K. ltd,30002180," 92,800.00 ",Survey Response Incentive Vouchers,Large,Programme Expenditure
,,,,,,Report Total," 21,698,779.24 ",,,
